[Event "Titled Tuesday Blitz February 22 Late 2022"]
[White "Roque Sola, Jose Luis"]
[Black "Horak, Martin"]
[WhiteFideId "5120390"]
[BlackFideId "367095"]
[WhiteElo "1983"]
[BlackElo "1997"]
[Result "0-1"]
[Round "03"]
[TimeControl "180+1"]
[Date "2022.02.23"]
[WhiteClock "0:00:12"]
[BlackClock "0:00:36"]

1. c4 {[%clk 0:03:00]}  c5 {[%clk 0:02:59]} 2. Nc3 {[%clk 0:03:00]}  Nc6 {[%clk 0:02:59]} 3. Nf3 {[%clk 0:03:00]}  g6 {[%clk 0:02:58]} 4. g3 {[%clk 0:02:59]}  Bg7 {[%clk 0:02:58]} 5. Bg2 {[%clk 0:03:00]}  e5 {[%clk 0:02:58]} 6. O-O {[%clk 0:02:59]}  d6 {[%clk 0:02:59]} 7. a3 {[%clk 0:02:58]}  a5 {[%clk 0:02:47]} 8. Rb1 {[%clk 0:02:57]}  Be6 {[%clk 0:02:46]} 9. d3 {[%clk 0:02:57]}  Nge7 {[%clk 0:02:46]} 10. Ne1 {[%clk 0:02:49]}  d5 {[%clk 0:02:41]} 11. cxd5 {[%clk 0:02:43]}  Nxd5 {[%clk 0:02:41]} 12. Ne4 {[%clk 0:02:35]}  b6 {[%clk 0:02:38]} 13. Qa4 {[%clk 0:02:22]}  Rc8 {[%clk 0:02:29]} 14. Nc2 {[%clk 0:02:02]}  O-O {[%clk 0:01:59]} 15. Ne3 {[%clk 0:01:50]}  Nxe3 {[%clk 0:01:52]} 16. Bxe3 {[%clk 0:01:51]}  Bd5 {[%clk 0:01:47]} 17. Rbc1 {[%clk 0:01:22]}  f5 {[%clk 0:01:41]} 18. Ng5 {[%clk 0:01:01]}  Bxg2 {[%clk 0:01:39]} 19. Kxg2 {[%clk 0:01:02]}  Qd5+ {[%clk 0:01:22]} 20. Kg1 {[%clk 0:00:53]}  f4 {[%clk 0:01:21]} 21. Bd2 {[%clk 0:00:50]}  Nd4 {[%clk 0:01:14]} 22. Rfe1 {[%clk 0:00:43]}  h6 {[%clk 0:00:41]} 23. Ne4 {[%clk 0:00:41]}  f3 {[%clk 0:00:40]} 24. e3 {[%clk 0:00:23]}  Ne2+ {[%clk 0:00:40]} 25. Rxe2 {[%clk 0:00:23]}  fxe2 {[%clk 0:00:41]} 26. Qc4 {[%clk 0:00:20]}  Qxc4 {[%clk 0:00:41]} 27. Rxc4 {[%clk 0:00:18]}  Rfd8 {[%clk 0:00:38]} 28. d4 {[%clk 0:00:12]}  cxd4 {[%clk 0:00:36]} 0-1


[Site "https://www.chess.com"]

[Event "Titled Tuesday Blitz February 22 Late 2022"]
[White "Sadhwani, Raunak"]
[Black "Jaracz, Pawel"]
[WhiteFideId "35093487"]
[BlackFideId "1102222"]
[WhiteElo "2616"]
[BlackElo "2429"]
[Result "1-0"]
[Round "03"]
[TimeControl "180+1"]
[Date "2022.02.22"]
[WhiteClock "0:00:02"]
[BlackClock "0:00:01"]

1. d4 {[%clk 0:03:00]}  Nf6 {[%clk 0:02:59]} 2. Nf3 {[%clk 0:03:00]}  d5 {[%clk 0:02:58]} 3. Bf4 {[%clk 0:03:00]}  c5 {[%clk 0:02:57]} 4. e3 {[%clk 0:02:59]}  e6 {[%clk 0:02:54]} 5. Nbd2 {[%clk 0:02:59]}  Bd6 {[%clk 0:02:54]} 6. c3 {[%clk 0:02:59]}  O-O {[%clk 0:02:46]} 7. Bd3 {[%clk 0:02:58]}  b6 {[%clk 0:02:45]} 8. Bxd6 {[%clk 0:02:41]}  Qxd6 {[%clk 0:02:45]} 9. e4 {[%clk 0:02:39]}  Qc6 {[%clk 0:02:32]} 10. e5 {[%clk 0:02:37]}  Ne4 {[%clk 0:02:32]} 11. Qe2 {[%clk 0:02:32]}  Bb7 {[%clk 0:02:27]} 12. O-O {[%clk 0:02:24]}  Nd7 {[%clk 0:02:18]} 13. Rfe1 {[%clk 0:02:23]}  cxd4 {[%clk 0:01:50]} 14. Nxd4 {[%clk 0:02:07]}  Qc7 {[%clk 0:01:46]} 15. Nxe4 {[%clk 0:02:07]}  dxe4 {[%clk 0:01:45]} 16. Bxe4 {[%clk 0:02:08]}  Bxe4 {[%clk 0:01:34]} 17. Qxe4 {[%clk 0:02:09]}  a6 {[%clk 0:01:33]} 18. Qc6 {[%clk 0:02:05]}  Qa7 {[%clk 0:01:29]} 19. Rad1 {[%clk 0:02:01]}  Rac8 {[%clk 0:01:20]} 20. Qf3 {[%clk 0:02:00]}  Qc7 {[%clk 0:01:17]} 21. Qg3 {[%clk 0:01:55]}  b5 {[%clk 0:01:06]} 22. h4 {[%clk 0:01:55]}  h6 {[%clk 0:01:04]} 23. h5 {[%clk 0:01:55]}  Nb6 {[%clk 0:00:47]} 24. Re4 {[%clk 0:01:53]}  Kh8 {[%clk 0:00:40]} 25. Rde1 {[%clk 0:01:34]}  Nd5 {[%clk 0:00:40]} 26. a3 {[%clk 0:01:24]}  Qe7 {[%clk 0:00:34]} 27. Kh2 {[%clk 0:01:18]}  Rc4 {[%clk 0:00:34]} 28. Rg4 {[%clk 0:01:12]}  Rg8 {[%clk 0:00:34]} 29. Re2 {[%clk 0:00:49]}  Qe8 {[%clk 0:00:34]} 30. f4 {[%clk 0:00:41]}  Ne7 {[%clk 0:00:30]} 31. f5 {[%clk 0:00:22]}  exf5 {[%clk 0:00:23]} 32. Rf4 {[%clk 0:00:21]}  Qd7 {[%clk 0:00:16]} 33. e6 {[%clk 0:00:20]}  fxe6 {[%clk 0:00:16]} 34. Nxe6 {[%clk 0:00:21]}  Rxf4 {[%clk 0:00:15]} 35. Nxf4 {[%clk 0:00:22]}  Kh7 {[%clk 0:00:09]} 36. Qe3 {[%clk 0:00:18]}  Nd5 {[%clk 0:00:08]} 37. Qd4 {[%clk 0:00:13]}  Rd8 {[%clk 0:00:05]} 38. Ne6 {[%clk 0:00:08]}  Qd6+ {[%clk 0:00:05]} 39. g3 {[%clk 0:00:06]}  Rd7 {[%clk 0:00:05]} 40. Nc5 {[%clk 0:00:04]}  Rf7 {[%clk 0:00:01]} 41. Rd2 {[%clk 0:00:03]}  f4 {[%clk 0:00:01]} 42. Qe4+ {[%clk 0:00:04]}  Kh8 {[%clk 0:00:01]} 43. Rxd5 {[%clk 0:00:04]}  fxg3+ {[%clk 0:00:02]} 44. Kg1 {[%clk 0:00:05]}  Qf6 {[%clk 0:00:01]} 45. Qe8+ {[%clk 0:00:01]}  Kh7 {[%clk 0:00:01]} 46. Qe2 {[%clk 0:00:02]} 1-0


[Site "https://www.chess.com"]

[Event "Titled Tuesday Blitz February 22 Late 2022"]
[White "Sailer, Mike"]
[Black "Baches Garcia, Guillermo"]
[WhiteFideId "2012901"]
[BlackFideId "2209764"]
[WhiteElo "2109"]
[BlackElo "2403"]
[Result "1/2-1/2"]
[Round "03"]
[TimeControl "180+1"]
[Date "2022.02.23"]
[WhiteClock "0:01:41"]
[BlackClock "0:00:48"]

1. d4 {[%clk 0:03:00]}  Nf6 {[%clk 0:03:00]} 2. Nf3 {[%clk 0:02:57]}  c5 {[%clk 0:02:59]} 3. c3 {[%clk 0:02:56]}  b6 {[%clk 0:02:58]} 4. Bf4 {[%clk 0:02:56]}  Bb7 {[%clk 0:02:57]} 5. e3 {[%clk 0:02:56]}  cxd4 {[%clk 0:02:57]} 6. exd4 {[%clk 0:02:56]}  e6 {[%clk 0:02:58]} 7. Be2 {[%clk 0:02:56]}  d6 {[%clk 0:02:58]} 8. O-O {[%clk 0:02:57]}  Be7 {[%clk 0:02:58]} 9. Nbd2 {[%clk 0:02:57]}  O-O {[%clk 0:02:57]} 10. h3 {[%clk 0:02:58]}  Nbd7 {[%clk 0:02:57]} 11. a4 {[%clk 0:02:58]}  a6 {[%clk 0:02:57]} 12. Re1 {[%clk 0:02:53]}  Qc7 {[%clk 0:02:57]} 13. c4 {[%clk 0:02:39]}  Rfe8 {[%clk 0:02:54]} 14. b4 {[%clk 0:02:38]}  Rac8 {[%clk 0:02:49]} 15. c5 {[%clk 0:02:37]}  bxc5 {[%clk 0:02:48]} 16. bxc5 {[%clk 0:02:32]}  e5 {[%clk 0:02:36]} 17. cxd6 {[%clk 0:02:24]}  Bxd6 {[%clk 0:02:36]} 18. dxe5 {[%clk 0:02:21]}  Nxe5 {[%clk 0:02:35]} 19. Nxe5 {[%clk 0:02:21]}  Bxe5 {[%clk 0:02:35]} 20. Bxe5 {[%clk 0:02:21]}  Rxe5 {[%clk 0:02:32]} 21. Bf3 {[%clk 0:02:21]}  Rxe1+ {[%clk 0:02:21]} 22. Qxe1 {[%clk 0:02:19]}  g6 {[%clk 0:02:14]} 23. Bxb7 {[%clk 0:02:18]}  Qxb7 {[%clk 0:02:14]} 24. Qe5 {[%clk 0:02:12]}  Kg7 {[%clk 0:01:59]} 25. Rb1 {[%clk 0:01:56]}  Qc6 {[%clk 0:01:35]} 26. a5 {[%clk 0:01:48]}  Re8 {[%clk 0:01:26]} 27. Qd4 {[%clk 0:01:45]}  Re6 {[%clk 0:01:16]} 28. Rb6 {[%clk 0:01:41]}  Qd5 {[%clk 0:00:48]} 1/2-1/2


[Site "https://www.chess.com"]

[Event "Titled Tuesday Blitz February 22 Late 2022"]
[White "Saraci, Nderim"]
[Black "Lewtak, Damian"]
[WhiteFideId "6351921"]
[BlackFideId "1141724"]
[WhiteElo "2573"]
[BlackElo "2361"]
[Result "1-0"]
[Round "03"]
[TimeControl "180+1"]
[Date "2022.02.22"]
[WhiteClock "0:01:23"]
[BlackClock "0:00:23"]

1. d4 {[%clk 0:03:00]}  Nf6 {[%clk 0:02:58]} 2. Nf3 {[%clk 0:03:01]}  c5 {[%clk 0:02:57]} 3. g3 {[%clk 0:03:01]}  cxd4 {[%clk 0:02:52]} 4. Nxd4 {[%clk 0:03:02]}  e5 {[%clk 0:02:49]} 5. Nb3 {[%clk 0:03:02]}  d5 {[%clk 0:02:32]} 6. Bg2 {[%clk 0:03:02]}  Be6 {[%clk 0:02:31]} 7. O-O {[%clk 0:03:02]}  Nbd7 {[%clk 0:02:29]} 8. Bg5 {[%clk 0:02:55]}  Be7 {[%clk 0:02:25]} 9. N1d2 {[%clk 0:02:35]}  O-O {[%clk 0:02:16]} 10. Rc1 {[%clk 0:02:34]}  Rc8 {[%clk 0:02:15]} 11. c3 {[%clk 0:02:18]}  h6 {[%clk 0:01:50]} 12. Bxf6 {[%clk 0:02:17]}  Nxf6 {[%clk 0:01:46]} 13. e4 {[%clk 0:02:16]}  Qc7 {[%clk 0:01:33]} 14. exd5 {[%clk 0:02:13]}  Bxd5 {[%clk 0:01:33]} 15. Bxd5 {[%clk 0:02:12]}  Nxd5 {[%clk 0:01:34]} 16. Qf3 {[%clk 0:02:11]}  Rfd8 {[%clk 0:01:31]} 17. Rfe1 {[%clk 0:02:11]}  Nf6 {[%clk 0:01:15]} 18. Ne4 {[%clk 0:02:10]}  a5 {[%clk 0:01:08]} 19. Nbd2 {[%clk 0:01:58]}  Nd5 {[%clk 0:01:07]} 20. Nf1 {[%clk 0:01:56]}  Qb6 {[%clk 0:01:02]} 21. b3 {[%clk 0:01:54]}  Ba3 {[%clk 0:00:59]} 22. Rcd1 {[%clk 0:01:52]}  Ne7 {[%clk 0:00:52]} 23. Ne3 {[%clk 0:01:46]}  Qc7 {[%clk 0:00:41]} 24. Nf5 {[%clk 0:01:39]}  Nxf5 {[%clk 0:00:40]} 25. Qxf5 {[%clk 0:01:40]}  Be7 {[%clk 0:00:37]} 26. c4 {[%clk 0:01:35]}  g6 {[%clk 0:00:37]} 27. Qf3 {[%clk 0:01:32]}  f5 {[%clk 0:00:35]} 28. Nc3 {[%clk 0:01:32]}  Bb4 {[%clk 0:00:35]} 29. Nd5 {[%clk 0:01:30]}  Qf7 {[%clk 0:00:31]} 30. Rxe5 {[%clk 0:01:29]}  Bc5 {[%clk 0:00:25]} 31. Rde1 {[%clk 0:01:27]}  Kg7 {[%clk 0:00:23]} 32. Re7 {[%clk 0:01:23]} 1-0


[Site "https://www.chess.com"]

[Event "Titled Tuesday Blitz February 22 Late 2022"]
[White "Sarana, Alexey"]
[Black "Pakleza, Zbigniew"]
[WhiteFideId "24133795"]
[BlackFideId "1119290"]
[WhiteElo "2665"]
[BlackElo "2467"]
[Result "1-0"]
[Round "03"]
[TimeControl "180+1"]
[Date "2022.02.22"]
[WhiteClock "0:01:36"]
[BlackClock "0:00:17"]

1. d4 {[%clk 0:03:00]}  d6 {[%clk 0:02:58]} 2. e4 {[%clk 0:03:00]}  Nf6 {[%clk 0:02:58]} 3. Nc3 {[%clk 0:03:01]}  c6 {[%clk 0:02:59]} 4. Bd3 {[%clk 0:02:56]}  e5 {[%clk 0:02:58]} 5. Nge2 {[%clk 0:02:53]}  Nbd7 {[%clk 0:02:58]} 6. O-O {[%clk 0:02:52]}  Be7 {[%clk 0:02:57]} 7. f4 {[%clk 0:02:46]}  O-O {[%clk 0:02:55]} 8. Kh1 {[%clk 0:02:46]}  Re8 {[%clk 0:02:48]} 9. Be3 {[%clk 0:02:45]}  Bf8 {[%clk 0:02:47]} 10. Bg1 {[%clk 0:02:43]}  exd4 {[%clk 0:02:40]} 11. Bxd4 {[%clk 0:02:41]}  Nc5 {[%clk 0:02:33]} 12. Ng3 {[%clk 0:02:28]}  Nxd3 {[%clk 0:01:58]} 13. cxd3 {[%clk 0:02:27]}  d5 {[%clk 0:01:31]} 14. Bxf6 {[%clk 0:02:14]}  Qxf6 {[%clk 0:01:29]} 15. e5 {[%clk 0:02:14]}  Qh4 {[%clk 0:01:19]} 16. d4 {[%clk 0:02:14]}  f5 {[%clk 0:01:03]} 17. Qd3 {[%clk 0:02:06]}  g6 {[%clk 0:01:00]} 18. Nge2 {[%clk 0:01:57]}  Be6 {[%clk 0:00:57]} 19. Ng1 {[%clk 0:01:52]}  Red8 {[%clk 0:00:44]} 20. g3 {[%clk 0:01:52]}  Qe7 {[%clk 0:00:43]} 21. Nf3 {[%clk 0:01:52]}  h6 {[%clk 0:00:44]} 22. Nd1 {[%clk 0:01:48]}  b6 {[%clk 0:00:39]} 23. Ne3 {[%clk 0:01:47]}  c5 {[%clk 0:00:35]} 24. g4 {[%clk 0:01:47]}  Qf7 {[%clk 0:00:29]} 25. gxf5 {[%clk 0:01:40]}  Bxf5 {[%clk 0:00:30]} 26. Nxf5 {[%clk 0:01:40]}  Qxf5 {[%clk 0:00:30]} 27. Qxf5 {[%clk 0:01:40]}  gxf5 {[%clk 0:00:31]} 28. Nh4 {[%clk 0:01:41]}  Kf7 {[%clk 0:00:23]} 29. Nxf5 {[%clk 0:01:41]}  Ke6 {[%clk 0:00:24]} 30. Nh4 {[%clk 0:01:40]}  cxd4 {[%clk 0:00:24]} 31. Rae1 {[%clk 0:01:40]}  Be7 {[%clk 0:00:22]} 32. f5+ {[%clk 0:01:40]}  Kd7 {[%clk 0:00:23]} 33. f6 {[%clk 0:01:39]}  Bb4 {[%clk 0:00:24]} 34. e6+ {[%clk 0:01:39]}  Kc6 {[%clk 0:00:23]} 35. Rd1 {[%clk 0:01:39]}  Kd6 {[%clk 0:00:20]} 36. e7 {[%clk 0:01:37]}  Rdc8 {[%clk 0:00:17]} 37. Nf5+ {[%clk 0:01:36]} 1-0


[Site "https://www.chess.com"]

[Event "Titled Tuesday Blitz February 22 Late 2022"]
[White "Schut, Han"]
[Black "Dauner, Benedikt"]
[WhiteFideId "1005561"]
[BlackFideId "16225899"]
[WhiteElo "2057"]
[BlackElo "2230"]
[Result "1-0"]
[Round "03"]
[TimeControl "180+1"]
[Date "2022.02.23"]
[WhiteClock "0:00:14"]
[BlackClock "0:00:04"]

1. e4 {[%clk 0:03:00]}  c5 {[%clk 0:02:58]} 2. Nf3 {[%clk 0:03:00]}  e6 {[%clk 0:02:58]} 3. c4 {[%clk 0:03:00]}  Nc6 {[%clk 0:02:56]} 4. Nc3 {[%clk 0:03:01]}  Nf6 {[%clk 0:02:54]} 5. Be2 {[%clk 0:03:01]}  d5 {[%clk 0:02:49]} 6. exd5 {[%clk 0:03:01]}  exd5 {[%clk 0:02:49]} 7. d4 {[%clk 0:03:02]}  cxd4 {[%clk 0:02:46]} 8. Nxd4 {[%clk 0:03:03]}  Bc5 {[%clk 0:02:44]} 9. Nb3 {[%clk 0:02:50]}  Bb4 {[%clk 0:02:42]} 10. O-O {[%clk 0:02:42]}  dxc4 {[%clk 0:02:30]} 11. Qxd8+ {[%clk 0:02:40]}  Nxd8 {[%clk 0:02:31]} 12. Bxc4 {[%clk 0:02:35]}  O-O {[%clk 0:02:30]} 13. Bg5 {[%clk 0:02:14]}  Be7 {[%clk 0:02:27]} 14. Rfe1 {[%clk 0:02:07]}  Be6 {[%clk 0:02:27]} 15. Bxe6 {[%clk 0:01:53]}  Nxe6 {[%clk 0:02:28]} 16. Bh4 {[%clk 0:01:36]}  Rfe8 {[%clk 0:02:21]} 17. Rad1 {[%clk 0:01:35]}  a6 {[%clk 0:01:56]} 18. h3 {[%clk 0:01:34]}  h6 {[%clk 0:01:55]} 19. Rd2 {[%clk 0:01:01]}  Rac8 {[%clk 0:01:51]} 20. Red1 {[%clk 0:00:59]}  Rc4 {[%clk 0:01:49]} 21. Bxf6 {[%clk 0:00:51]}  Bxf6 {[%clk 0:01:47]} 22. Nd5 {[%clk 0:00:51]}  Be5 {[%clk 0:01:37]} 23. Ne3 {[%clk 0:00:39]}  Rc7 {[%clk 0:01:29]} 24. Rd7 {[%clk 0:00:39]}  Bxb2 {[%clk 0:01:14]} 25. Rxc7 {[%clk 0:00:30]}  Nxc7 {[%clk 0:01:15]} 26. Rd7 {[%clk 0:00:30]}  Be5 {[%clk 0:00:38]} 27. g3 {[%clk 0:00:30]}  b5 {[%clk 0:00:25]} 28. Ng4 {[%clk 0:00:26]}  Na8 {[%clk 0:00:05]} 29. Nxe5 {[%clk 0:00:25]}  Rxe5 {[%clk 0:00:06]} 30. Rd8+ {[%clk 0:00:25]}  Kh7 {[%clk 0:00:06]} 31. Rxa8 {[%clk 0:00:26]}  Re1+ {[%clk 0:00:07]} 32. Kg2 {[%clk 0:00:26]}  Re6 {[%clk 0:00:08]} 33. Nc5 {[%clk 0:00:23]}  Re2 {[%clk 0:00:05]} 34. Rxa6 {[%clk 0:00:20]}  Rc2 {[%clk 0:00:06]} 35. Nd7 {[%clk 0:00:14]}  Rd2 {[%clk 0:00:05]} 36. Nf8+ {[%clk 0:00:13]}  Kg8 {[%clk 0:00:05]} 37. Ra8 {[%clk 0:00:13]}  Rb2 {[%clk 0:00:04]} 38. Ne6+ {[%clk 0:00:11]}  Kh7 {[%clk 0:00:05]} 39. Nf8+ {[%clk 0:00:11]}  Kg8 {[%clk 0:00:05]} 40. Nd7+ {[%clk 0:00:12]}  Kh7 {[%clk 0:00:05]} 41. a3 {[%clk 0:00:10]}  Ra2 {[%clk 0:00:04]} 42. Ra5 {[%clk 0:00:08]}  Rb2 {[%clk 0:00:03]} 43. Ne5 {[%clk 0:00:08]}  Rb1 {[%clk 0:00:03]} 44. Nf3 {[%clk 0:00:07]}  Rb2 {[%clk 0:00:03]} 45. Nd4 {[%clk 0:00:07]}  Rd2 {[%clk 0:00:02]} 46. Nxb5 {[%clk 0:00:07]}  Ra2 {[%clk 0:00:02]} 47. a4 {[%clk 0:00:08]}  Ra1 {[%clk 0:00:03]} 48. Ra7 {[%clk 0:00:08]}  Ra2 {[%clk 0:00:04]} 49. Nc7 {[%clk 0:00:09]}  h5 {[%clk 0:00:05]} 50. Ne8 {[%clk 0:00:09]}  g6 {[%clk 0:00:05]} 51. Rxf7+ {[%clk 0:00:09]}  Kh6 {[%clk 0:00:05]} 52. Ra7 {[%clk 0:00:10]}  Ra3 {[%clk 0:00:05]} 53. Nf6 {[%clk 0:00:10]}  g5 {[%clk 0:00:04]} 54. Ng8+ {[%clk 0:00:10]}  Kg6 {[%clk 0:00:04]} 55. Ne7+ {[%clk 0:00:11]}  Kf6 {[%clk 0:00:05]} 56. Nc6 {[%clk 0:00:12]}  Kg6 {[%clk 0:00:05]} 57. a5 {[%clk 0:00:12]}  h4 {[%clk 0:00:05]} 58. a6 {[%clk 0:00:12]}  hxg3 {[%clk 0:00:05]} 59. fxg3 {[%clk 0:00:13]}  Ra2+ {[%clk 0:00:06]} 60. Kf3 {[%clk 0:00:14]}  Ra3+ {[%clk 0:00:07]} 61. Ke4 {[%clk 0:00:12]}  Rxg3 {[%clk 0:00:06]} 62. Ra8 {[%clk 0:00:12]}  Rxh3 {[%clk 0:00:06]} 63. a7 {[%clk 0:00:13]}  Ra3 {[%clk 0:00:06]} 64. Rg8+ {[%clk 0:00:13]}  Kh5 {[%clk 0:00:07]} 65. a8=Q {[%clk 0:00:14]}  Rb3 {[%clk 0:00:06]} 66. Qe8+ {[%clk 0:00:12]}  Kg4 {[%clk 0:00:05]} 67. Qe6+ {[%clk 0:00:12]}  Kg3 {[%clk 0:00:05]} 68. Qxb3+ {[%clk 0:00:12]}  Kg2 {[%clk 0:00:05]} 69. Qf3+ {[%clk 0:00:13]}  Kh2 {[%clk 0:00:05]} 70. Rh8+ {[%clk 0:00:12]}  Kg1 {[%clk 0:00:06]} 71. Qh1+ {[%clk 0:00:12]}  Kf2 {[%clk 0:00:05]} 72. Rf8+ {[%clk 0:00:13]}  Ke2 {[%clk 0:00:05]} 73. Qg2+ {[%clk 0:00:13]}  Ke1 {[%clk 0:00:04]} 74. Rf1# {[%clk 0:00:14]} 1-0


[Site "https://www.chess.com"]

[Event "Titled Tuesday Blitz February 22 Late 2022"]
[White "Sharafiev, Azat"]
[Black "Glavina, Pablo"]
[WhiteFideId "4186214"]
[BlackFideId "100234"]
[WhiteElo "2299"]
[BlackElo "2369"]
[Result "1-0"]
[Round "03"]
[TimeControl "180+1"]
[Date "2022.02.23"]
[WhiteClock "0:02:02"]
[BlackClock "0:01:42"]

1. d4 {[%clk 0:03:00]}  Nf6 {[%clk 0:02:56]} 2. Nf3 {[%clk 0:03:01]}  g6 {[%clk 0:02:55]} 3. Bg5 {[%clk 0:03:01]}  Bg7 {[%clk 0:02:55]} 4. Nbd2 {[%clk 0:03:01]}  c5 {[%clk 0:02:54]} 5. e3 {[%clk 0:02:59]}  b6 {[%clk 0:02:51]} 6. Bd3 {[%clk 0:02:57]}  Bb7 {[%clk 0:02:48]} 7. c3 {[%clk 0:02:57]}  d5 {[%clk 0:02:46]} 8. Qb1 {[%clk 0:02:56]}  Nbd7 {[%clk 0:02:43]} 9. a4 {[%clk 0:02:54]}  a6 {[%clk 0:02:37]} 10. b4 {[%clk 0:02:53]}  c4 {[%clk 0:02:36]} 11. Bc2 {[%clk 0:02:51]}  h6 {[%clk 0:02:35]} 12. Bh4 {[%clk 0:02:51]}  O-O {[%clk 0:02:31]} 13. O-O {[%clk 0:02:50]}  Qc7 {[%clk 0:02:27]} 14. Bg3 {[%clk 0:02:49]}  Qc8 {[%clk 0:02:22]} 15. h3 {[%clk 0:02:49]}  Re8 {[%clk 0:02:20]} 16. Ne5 {[%clk 0:02:47]}  Nxe5 {[%clk 0:02:14]} 17. Bxe5 {[%clk 0:02:47]}  Qe6 {[%clk 0:02:10]} 18. f4 {[%clk 0:02:43]}  Ne4 {[%clk 0:02:00]} 19. Nxe4 {[%clk 0:02:17]}  dxe4 {[%clk 0:02:01]} 20. Bxe4 {[%clk 0:02:16]}  Bxe4 {[%clk 0:02:00]} 21. Qxe4 {[%clk 0:02:17]}  f5 {[%clk 0:01:56]} 22. Qb7 {[%clk 0:02:09]}  Bxe5 {[%clk 0:01:49]} 23. fxe5 {[%clk 0:02:06]}  Reb8 {[%clk 0:01:46]} 24. Qf3 {[%clk 0:02:04]}  b5 {[%clk 0:01:42]} 25. axb5 {[%clk 0:02:02]} 1-0


[Site "https://www.chess.com"]

[Event "Titled Tuesday Blitz February 22 Late 2022"]
[White "Shirazi, Kamran"]
[Black "Mikheev, Stanislav"]
[WhiteFideId "2000733"]
[BlackFideId "4135920"]
[WhiteElo "2317"]
[BlackElo "2249"]
[Result "1/2-1/2"]
[Round "03"]
[TimeControl "180+1"]
[Date "2022.02.23"]
[WhiteClock "0:00:23"]
[BlackClock "0:00:39"]

1. e3 {[%clk 0:03:00]}  e5 {[%clk 0:02:56]} 2. Ne2 {[%clk 0:03:01]}  d5 {[%clk 0:02:56]} 3. d4 {[%clk 0:03:02]}  Nc6 {[%clk 0:02:55]} 4. c4 {[%clk 0:03:02]}  exd4 {[%clk 0:02:53]} 5. cxd5 {[%clk 0:03:03]}  Qxd5 {[%clk 0:02:52]} 6. Nbc3 {[%clk 0:03:02]}  Bb4 {[%clk 0:02:50]} 7. a3 {[%clk 0:03:01]}  Bxc3+ {[%clk 0:02:49]} 8. bxc3 {[%clk 0:02:54]}  d3 {[%clk 0:02:47]} 9. Nf4 {[%clk 0:02:53]}  d2+ {[%clk 0:02:31]} 10. Bxd2 {[%clk 0:02:51]}  Qd6 {[%clk 0:02:26]} 11. Bc4 {[%clk 0:02:44]}  Nf6 {[%clk 0:02:24]} 12. f3 {[%clk 0:02:35]}  O-O {[%clk 0:02:21]} 13. e4 {[%clk 0:02:33]}  Rd8 {[%clk 0:02:11]} 14. Qe2 {[%clk 0:02:33]}  Ne5 {[%clk 0:02:03]} 15. Ba2 {[%clk 0:02:03]}  b6 {[%clk 0:01:44]} 16. Be3 {[%clk 0:02:02]}  a5 {[%clk 0:01:40]} 17. Rd1 {[%clk 0:01:58]}  Qxd1+ {[%clk 0:01:31]} 18. Qxd1 {[%clk 0:01:58]}  Rxd1+ {[%clk 0:01:32]} 19. Kxd1 {[%clk 0:01:58]}  Ba6 {[%clk 0:01:30]} 20. Kc2 {[%clk 0:01:58]}  Rd8 {[%clk 0:01:29]} 21. Rd1 {[%clk 0:01:50]}  Rxd1 {[%clk 0:01:29]} 22. Kxd1 {[%clk 0:01:51]}  Nc4 {[%clk 0:01:29]} 23. Bc1 {[%clk 0:01:50]}  Kf8 {[%clk 0:01:24]} 24. Ke1 {[%clk 0:01:39]}  Ke7 {[%clk 0:01:24]} 25. Kf2 {[%clk 0:01:38]}  Kd6 {[%clk 0:01:20]} 26. h4 {[%clk 0:01:38]}  Nd7 {[%clk 0:01:13]} 27. Nd3 {[%clk 0:01:24]}  Nde5 {[%clk 0:01:03]} 28. Bf4 {[%clk 0:01:07]}  f6 {[%clk 0:01:04]} 29. Nxe5 {[%clk 0:01:05]}  Nxe5 {[%clk 0:00:58]} 30. Bg8 {[%clk 0:00:57]}  h6 {[%clk 0:00:57]} 31. g4 {[%clk 0:00:56]}  Kc5 {[%clk 0:00:56]} 32. Be3+ {[%clk 0:00:53]}  Kd6 {[%clk 0:00:55]} 33. g5 {[%clk 0:00:53]}  hxg5 {[%clk 0:00:53]} 34. hxg5 {[%clk 0:00:53]}  Nc4 {[%clk 0:00:51]} 35. Bf4+ {[%clk 0:00:53]}  Ne5 {[%clk 0:00:45]} 36. Ke3 {[%clk 0:00:49]}  Ke7 {[%clk 0:00:41]} 37. Bxe5 {[%clk 0:00:46]}  fxe5 {[%clk 0:00:41]} 38. f4 {[%clk 0:00:46]}  exf4+ {[%clk 0:00:30]} 39. Kxf4 {[%clk 0:00:47]}  Kd6 {[%clk 0:00:30]} 40. e5+ {[%clk 0:00:47]}  Kc5 {[%clk 0:00:27]} 41. Kf5 {[%clk 0:00:46]}  Bd3+ {[%clk 0:00:26]} 42. Kf4 {[%clk 0:00:39]}  b5 {[%clk 0:00:26]} 43. Bf7 {[%clk 0:00:37]}  b4 {[%clk 0:00:24]} 44. cxb4+ {[%clk 0:00:36]}  axb4 {[%clk 0:00:25]} 45. axb4+ {[%clk 0:00:37]}  Kxb4 {[%clk 0:00:26]} 46. e6 {[%clk 0:00:36]}  Bc4 {[%clk 0:00:24]} 47. g6 {[%clk 0:00:36]}  Kc5 {[%clk 0:00:23]} 48. e7 {[%clk 0:00:36]}  Bb5 {[%clk 0:00:23]} 49. e8=Q {[%clk 0:00:35]}  Bxe8 {[%clk 0:00:23]} 50. Bxe8 {[%clk 0:00:36]}  Kd6 {[%clk 0:00:24]} 51. Ke4 {[%clk 0:00:33]}  Ke7 {[%clk 0:00:24]} 52. Bf7 {[%clk 0:00:34]}  Kf8 {[%clk 0:00:24]} 53. Kd5 {[%clk 0:00:34]}  Ke7 {[%clk 0:00:23]} 54. Ke5 {[%clk 0:00:33]}  Kf8 {[%clk 0:00:23]} 55. Kf5 {[%clk 0:00:33]}  Ke7 {[%clk 0:00:23]} 56. Bc4 {[%clk 0:00:31]}  Kf8 {[%clk 0:00:23]} 57. Ke6 {[%clk 0:00:30]}  Kg8 {[%clk 0:00:23]} 58. Ke7+ {[%clk 0:00:28]}  Kh8 {[%clk 0:00:23]} 59. Kd7 {[%clk 0:00:25]}  c5 {[%clk 0:00:24]} 60. Bd3 {[%clk 0:00:22]}  Kg8 {[%clk 0:00:24]} 61. Bc2 {[%clk 0:00:21]}  c4 {[%clk 0:00:23]} 62. Kd6 {[%clk 0:00:21]}  c3 {[%clk 0:00:24]} 63. Ke7 {[%clk 0:00:22]}  Kh8 {[%clk 0:00:24]} 64. Kd6 {[%clk 0:00:21]}  Kg8 {[%clk 0:00:23]} 65. Kc5 {[%clk 0:00:22]}  Kh8 {[%clk 0:00:23]} 66. Kd4 {[%clk 0:00:23]}  Kg8 {[%clk 0:00:24]} 67. Kxc3 {[%clk 0:00:24]}  Kh8 {[%clk 0:00:25]} 68. Kd4 {[%clk 0:00:24]}  Kg8 {[%clk 0:00:26]} 69. Ke5 {[%clk 0:00:25]}  Kh8 {[%clk 0:00:26]} 70. Ke6 {[%clk 0:00:26]}  Kg8 {[%clk 0:00:27]} 71. Ke7 {[%clk 0:00:27]}  Kh8 {[%clk 0:00:28]} 72. Kd7 {[%clk 0:00:27]}  Kg8 {[%clk 0:00:29]} 73. Bf5 {[%clk 0:00:26]}  Kh8 {[%clk 0:00:30]} 74. Kd6 {[%clk 0:00:26]}  Kg8 {[%clk 0:00:31]} 75. Bd7 {[%clk 0:00:26]}  Kh8 {[%clk 0:00:32]} 76. Ke7 {[%clk 0:00:27]}  Kg8 {[%clk 0:00:33]} 77. Ke8 {[%clk 0:00:27]}  Kh8 {[%clk 0:00:34]} 78. Ke7 {[%clk 0:00:28]}  Kg8 {[%clk 0:00:34]} 79. Bf5 {[%clk 0:00:25]}  Kh8 {[%clk 0:00:35]} 80. Kd6 {[%clk 0:00:25]}  Kg8 {[%clk 0:00:36]} 81. Ke5 {[%clk 0:00:26]}  Kh8 {[%clk 0:00:37]} 82. Kf4 {[%clk 0:00:26]}  Kg8 {[%clk 0:00:38]} 83. Kg5 {[%clk 0:00:26]}  Kh8 {[%clk 0:00:39]} 84. Be6 {[%clk 0:00:23]} 1/2-1/2


[Site "https://www.chess.com"]